Cogmind - Beta 16 @@@ ROGUE MODE // 2025.12.31 @ 01:21:07 Player: lvl5hm Result: Destroyed by S-43 Plague with Heavy Machine Gun Performance ------------- Evolutions (8) 4000 Regions Visited (9) 1800 Robots Destroyed (150) 750 Value Destroyed (4031) 4031 Prototype IDs (19) 380 Alien Tech Used (0) 0 Bonus (30) 30 TOTAL SCORE: 10991 Bonus ------- High Alert Combat Kills 30 Cogmind --------- Core Integrity 0/1450 Matter 135/300 Energy 89/100 System Corruption 10% Temperature Cool (0) Movement Core (50) Location -2/Research Parts ------- > --- POWER (3) -------- (None) > --- PROPULSION (6) --- (None) > --- UTILITY (11) ----- Advanced Signal Interpreter Experimental Terrain Scan Processor Advanced Hacking Suite Advanced Hacking Suite Advanced Hacking Suite > --- WEAPON (3) ------- (None) > --- INVENTORY (5) ---- Authchip [Propulsion] Authchip [Propulsion] Authchip [Propulsion] Authchip [Armor] Powered Hammer Peak State ------------ > --- POWER ------------ Light Particle Reactor > --- PROPULSION ------- Biomechanical Wings Cooled Field Propulsion Drive Cooled Field Propulsion Drive Cooled Field Propulsion Drive Field Propulsion Array > --- UTILITY ---------- Large Storage Unit Gravity Neutralizer Long-range Sensor Array Advanced Signal Interpreter Long-range Terrain Scanner Experimental Terrain Scan Processor Advanced Hacking Suite Advanced Hacking Suite Advanced Hacking Suite Advanced Hacking Suite Improved System Shield > --- WEAPON ----------- Compact Mass Driver > --- INVENTORY -------- Improved Matter Compressor Core Analyzer Improved Transmission Jammer ECM Suite Advanced Force Field Advanced Point Defense System Authchip [Propulsion] Authchip [Propulsion] Authchip [Propulsion] Authchip [Armor] Enhanced Hardcell Cannon Gamma Bomb Array Mini Smartbomb Launcher Powered Hammer [Rating: 131] Favorites ----------- Power Heavy Ion Engine Engine Heavy Ion Engine Power Core Micro Nuclear Core Reactor Light Particle Reactor Propulsion Light Treads Treads Light Treads Flight Unit Improved Flight Unit Utility Advanced Hacking Suite Device Cooling System Storage Huge Storage Unit Processor Advanced Signal Interpreter Hackware Advanced Hacking Suite Protection Hardened Heavy Armor Plating Weapon Heavy Particle Cannon Energy Gun Medium Laser Energy Cannon Heavy Particle Cannon Ballistic Gun Autogun Ballistic Cannon Compact Mass Driver Launcher Mini Smartbomb Launcher Impact Weapon Powered Hammer Slashing Weapon Katana Special Melee Weapon Datajack Build | -11 -10 -9 -8 -7 -6 -5 -4 -3 -2 ------- Run | Yrd Mat Mat Mat Fac Fac Fac Fac Res Res Slots Evolved 16 | . . 2 2 2 2 2 2 2 2 Power 2 | . . . . . . 1 . . 1 Propulsion 4 | . . 1 1 . 1 . 1 . . Utility 9 | . . 1 1 2 1 1 1 2 . Weapon 1 | . . . . . . . . . 1 Parts Attached 142 | 8 11 35 22 8 9 17 11 13 8 Power 18 | 1 1 3 1 . 1 2 5 3 1 Engine 7 | 1 1 3 . . . 2 . . . Core 5 | . . . 1 . 1 . 3 . . Reactor 6 | . . . . . . . 2 3 1 Propulsion 39 | 2 2 16 8 2 2 . 1 2 4 Treads 24 | 2 2 15 5 . . . . . . Leg . | . . . . . . . . . . Wheel . | . . . . . . . . . . Hover . | . . . . . . . . . . Flight 15 | . . 1 3 2 2 . 1 2 4 Utility 60 | 2 4 8 10 5 5 14 5 6 1 Device 18 | 1 2 4 2 1 1 4 1 2 . Storage 6 | 1 2 . 1 . . 2 . . . Processor 4 | . . 1 . 1 . 1 . 1 . Hackware 22 | . . . 2 2 4 7 3 3 1 Protection 10 | . . 3 5 1 . . 1 . . Artifact . | . . . . . . . . . . Weapon 25 | 3 4 8 3 1 1 1 . 2 2 Energy Gun 2 | 2 . . . . . . . . . Energy Cannon 5 | . 3 2 . . . . . . . Ballistic Gun 8 | 1 . 5 2 . . . . . . Ballistic Cannon 3 | . . . . . . . . 1 2 Launcher 2 | . . 1 . . . . . 1 . Special Weapon . | . . . . . . . . . . Impact Weapon 2 | . 1 . . . 1 . . . . Slashing Weapon 2 | . . . 1 . . 1 . . . Piercing Weapon . | . . . . . . . . . . Special Melee Weapon 1 | . . . . 1 . . . . . Unidentified Prototypes 11 | . . 3 . 1 2 1 . 2 2 Parts Lost 33 | . . 4 5 . 1 1 4 5 13 Power 5 | . . . . . . 1 3 . 1 Propulsion 10 | . . . 2 . . . . 2 6 Utility 14 | . . 3 2 . . . 1 3 5 Weapon 4 | . . 1 1 . 1 . . . 1 Highest Loss Streak 9 | . . 2 2 . 1 1 2 2 9 To Critical Strikes . | . . . . . . . . . . Average Backups 16 | . 7 21 23 9 9 10 14 13 13 Power . | . . . . . . . . . . Propulsion 3 | . . 6 5 1 . . . . . Utility 7 | . 2 6 7 6 7 8 12 9 9 Weapon 5 | . 4 8 7 1 1 1 1 2 3 Tool/Special . | . . . . . . . . . . Unused Backups 30 | . 2 3 8 2 2 . 2 1 10 Power 1 | . . . 1 . . . . . . Propulsion . | . . . . . . . . . . Utility 18 | . . . 3 2 1 . 2 1 9 Weapon 11 | . 2 3 4 . 1 . . . 1 Tool/Special . | . . . . . . . . . . Average Slot Usage (%) 92 | . 100 99 89 93 98 94 91 85 56 Engine 6 | . 14 11 8 . . 1 2 . . Core 1 | . . . . 7 6 5 3 . . Treads 20 | . 28 32 33 . . . . . . Flight 10 | . . . 2 30 33 29 26 23 11 Device 11 | . 14 17 8 8 7 8 9 11 9 Storage 8 | . 14 11 8 7 6 5 5 4 3 Processor 2 | . . . . 4 6 5 5 7 8 Hackware 8 | . . . 1 22 23 25 23 23 17 Protection 3 | . . 3 8 . . . 2 1 . Energy Gun 1 | . 8 . . . . . . . . Energy Cannon 7 | . 16 15 6 . . . . . . Ballistic Gun 4 | . . 6 10 . . . . . . Impact Weapon 1 | . 1 . . . 3 4 4 3 . Slashing Weapon 1 | . . . . 7 5 5 4 . . Peak Build Rating 131 | 7 12 19 33 40 51 81 108 130 131 Average Rating 41 | 6 9 17 28 36 47 70 99 112 89 On Entrance 42 | . 7 11 19 30 40 51 72 101 93 Avg Prop Armor Cover (%) 16 | . . . . . . . . 16 . Naked Turns . | . . . . . . . . . . Heaviest Build 122 | 15 92 104 122 21 24 39 49 51 44 Greatest Support 83 | 40 40 63 83 21 27 39 49 49 63 Greatest Overweight (x) 4 | 1 2 2 4 . . . 1 2 1 Average Overweight (x) . | . . 1 1 . . . . . . Largest Inventory Capacity 25 | 8 25 25 25 10 10 15 15 15 15 Average Capacity 18 | 7 9 25 24 10 10 11 15 15 14 Most Carried 25 | 2 9 25 25 10 10 15 15 15 15 Average Carried 16 | . 7 22 23 9 9 10 14 14 13 Final Capacity 25 | 8 25 25 10 10 10 15 15 15 5 Final Carried 24 | 2 9 24 10 10 10 15 15 15 5 Class Distribution -------------------- 32% | Scavenger-Mutant 28% | Mutant 16% | Hacker-Sprinter 8% | Wizard-Sprinter 5% | Hacker-Mutant Dominant Class ---------------- Mutant | -10/Materials Scavenger-Mutant | -9/Materials Mutant | -8/Materials Hacker-Sprinter | -7/Factory Hacker-Sprinter | -6/Factory Hacker-Sprinter | -5/Factory Wizard-Sprinter | -4/Factory Wizard-Sprinter | -3/Research Hacker-Mutant | -2/Research Resources | -11 -10 -9 -8 -7 -6 -5 -4 -3 -2 ----------- Run | Yrd Mat Mat Mat Fac Fac Fac Fac Res Res Matter Collected 3961 | 278 122 651 900 60 90 477 684 238 461 Remotely . | . . . . . . . . . . Salvage Created 5416 | 157 509 1616 1554 34 96 477 503 234 236 Parts 301 | 13 21 112 76 3 3 23 32 6 12 Haulers Intercepted 5 | . 2 1 1 . 1 . . . . Recyclers Shooed 7 | . . 3 2 . . 1 1 . . Parts Field Recycled . | . . . . . . . . . . Retrieved Matter . | . . . . . . . . . . Parts Self-Destructed . | . . . . . . . . . . Prevented . | . . . . . . . . . . Parts Restored . | . . . . . . . . . . Kills | -11 -10 -9 -8 -7 -6 -5 -4 -3 -2 ------- Run | Yrd Mat Mat Mat Fac Fac Fac Fac Res Res Combat Hostiles Destroyed 92 | . 8 35 29 . . . 9 4 7 Melee 1 | . . . . . . . . . 1 Guns 21 | . 2 6 13 . . . . . . Cannons 50 | . 6 24 15 . . . . . 5 AOE 18 | . . 5 . . . . 9 4 . Classes Destroyed 14 | 2 4 5 2 . . . . . 1 Worker 11 | . . 1 1 . . 2 5 2 . Builder 6 | . 1 1 1 . . 1 2 . . Tunneler 9 | 4 1 . 1 . . 1 2 . . Hauler 5 | . 2 1 1 . 1 . . . . Recycler 11 | 1 . 3 2 . . 3 2 . . Operator 4 | . 1 2 1 . . . . . . Watcher 12 | . . 2 1 1 . 3 1 4 . Swarmer 32 | . . 7 7 . . . 9 4 5 Grunt 38 | . 8 16 13 . . . . . 1 Brawler 2 | . . 2 . . . . . . . Duelist 1 | . . . 1 . . . . . . Sentry 17 | . . 10 7 . . . . . . Hunter 1 | . . . 1 . . . . . . Programmer 1 | . . . . . . . . . 1 Best Kill Streak 7 | 3 3 4 5 1 1 3 7 4 7 Combat Bots Only 7 | . 2 4 4 . . . 5 4 7 Max Kills in Single Turn 4 | 1 2 3 2 1 1 1 4 2 1 Gunslinging . | . . . . . . . . . . Exploded 3 | . . 2 . . . . 3 2 . Melee 1 | . . . . . . . . . 1 Uniques/NPCs Destroyed . | . . . . . . . . . . Combat | -11 -10 -9 -8 -7 -6 -5 -4 -3 -2 -------- Run | Yrd Mat Mat Mat Fac Fac Fac Fac Res Res Hostile Shots Fired 760 | . 28 134 193 26 19 15 65 93 187 Missed 283 | . 10 28 54 17 10 7 38 52 67 Hits 477 | . 18 106 139 9 9 8 27 41 120 Melee 5 | . . 2 3 . . . . . . Projectile 472 | . 18 104 136 9 9 8 27 41 120 Critical Strikes 18 | . . 2 8 . . . . 2 6 Part Disruptions 1 | . . . . . . . . . 1 Damage Taken 8334 | . 269 1343 2093 121 93 224 564 787 2840 Core 2195 | . 35 166 155 43 32 62 115 132 1455 Absorbed by Shields . | . . . . . . . . . . Core Remaining (%) 86 | 100 86 58 71 93 96 93 90 89 . Volleys Fired 282 | 8 35 89 111 . . . 7 7 25 Largest 2 | 2 2 2 2 . . . 1 1 2 Hottest 150 | 70 136 150 150 . . . 30 80 112 Shots Fired 520 | 16 66 172 217 . . . 7 7 35 Gun 230 | 16 20 64 130 . . . . . . Cannon 273 | . 46 105 84 . . . . 3 35 Launcher 17 | . . 3 3 . . . 7 4 . Special . | . . . . . . . . . . Kinetic 244 | 8 4 64 130 . . . . 3 35 Thermal 259 | 8 62 105 84 . . . . . . Explosive 17 | . . 3 3 . . . 7 4 . Electromagnetic . | . . . . . . . . . . Robot Hit Streak 14 | 7 9 14 11 . . . . 7 9 Robot Miss Streak 5 | 1 2 5 3 . . . . . 2 Penetration Max . | . . . . . . . . . . Secondary Targets 3 | . . . 3 . . . . . . Max Gunslinging Chain 1 | . . . 1 . . . . . . Shots Hit Robots 377 | 11 44 103 151 2 9 11 15 11 20 Core Hits 189 | 7 19 52 60 1 2 6 24 11 7 Critical Kills 3 | . 1 . 2 . . . . . . Critical Parts Destroyed 2 | . . . . . . 1 . 1 . Critical Strikes 12 | . 4 . 2 . 2 1 . 1 2 Burn 3 | . 3 . . . . . . . . Meltdown 2 | . 1 . 1 . . . . . . Destroy 1 | . . . 1 . . . . . . Blast 2 | . . . . . . . . . 2 Smash 2 | . . . . . . 1 . 1 . Sever 2 | . . . . . 2 . . . . Melee Attacks 190 | . 2 . 3 16 32 48 51 33 5 Impact 70 | . 2 . . . 4 15 19 25 5 Slashing 119 | . . . 3 15 28 33 32 8 . Piercing . | . . . . . . . . . . Sneak Attacks 28 | . . . 1 . 4 9 10 4 . Combat Hostiles . | . . . . . . . . . . Follow-up Attacks 3 | . . . . . 1 . 2 . . Damage Inflicted 12143 | 115 813 2484 3217 69 457 843 2061 1076 1008 Guns 2393 | 115 179 660 1439 . . . . . . Cannons 4457 | . 634 1480 1550 . . . . . 793 Explosions 1705 | . . 300 . . . . 928 477 . Melee 3464 | . . . 154 69 457 843 1133 599 209 Ramming 124 | . . 44 74 . . . . . 6 Kinetic 2968 | 50 26 660 1439 . . . . . 793 Thermal 3882 | 65 787 1480 1550 . . . . . . Explosive 1705 | . . 300 . . . . 928 477 . Electromagnetic . | . . . . . . . . . . Impact 1318 | . . . . . 100 314 390 305 209 Slashing 2146 | . . . 154 69 357 529 743 294 . Piercing . | . . . . . . . . . . Highest Corruption 10 | . . . . . 1 . 4 3 10 Average Corruption 2 | . . . . . 1 . 2 2 3 Corruption Purged . | . . . . . . . . . . Corruption Blocked . | . . . . . . . . . . Effects 9 | . . . . . 4 . . 2 3 Message Errors 1 | . . . . . . . . . 1 Matter Fused 3 | . . . . . 2 . . . 1 Heat Flow Errors 2 | . . . . . 1 . . 1 . Energy Discharges 1 | . . . . . . . . . 1 Parts Fused 1 | . . . . . . . . 1 . Data Loss (minor) 1 | . . . . . 1 . . . . Overload Shots . | . . . . . . . . . . Overflow Damage 1092 | . 1 49 . . 41 266 396 232 107 Projectiles 81 | . 1 26 . . . . . . 54 Explosions 23 | . . 23 . . . . . . . Melee 988 | . . . . . 41 266 396 232 53 Knockbacks 9 | . . . . . . 2 3 1 3 Impact 6 | . . . . . . 2 3 1 . Kinetic 2 | . . . . . . . . . 2 Secondary 1 | . . . . . . . . . 1 Self-Inflicted Damage 13 | . . . 10 . . . . . 3 Shots 1 | . . . 1 . . . . . . Rammed 11 | . 1 4 4 . . . . . 2 Targets Rammed 16 | . 1 6 7 . . . . . 2 Kicked . | . . . . . . . . . . Crushed 5 | . . 2 3 . . . . . . Highest Temperature 444 | 80 320 307 444 6 125 1 82 219 371 Average Temperature 73 | 38 80 58 101 4 43 1 24 71 164 Received Heat Transfer 2515 | . 141 519 999 27 18 27 12 60 712 Effects 7 | . 3 2 2 . . . . . . Interference 5 | . 3 2 . . . . . . . Damage (minor) 2 | . . . 2 . . . . . . Siege Activations . | . . . . . . . . . . Martial Activations . | . . . . . . . . . . Shielding Activations . | . . . . . . . . . . Robots Disrupted . | . . . . . . . . . . Combat Hostiles . | . . . . . . . . . . Robots Corrupted 8 | . . . . . . 2 2 3 1 Combat Hostiles 1 | . . . . . . . . . 1 Parts Fried 9 | . . . . . . 2 3 3 1 Impact Corruptions 17 | . . . . . 2 5 4 3 3 Robots Melted 2 | . 1 . 1 . . . . . . Combat Hostiles 1 | . . . 1 . . . . . . Parts Melted 15 | . 6 2 7 . . . . . . Heat Transferred 6549 | 185 1813 2257 2294 . . . . . . Parts Sabotaged . | . . . . . . . . . . Parts Stolen . | . . . . . . . . . . Parts Stripped . | . . . . . . . . . . Power Chain Reactions . | . . . . . . . . . . Alert | -11 -10 -9 -8 -7 -6 -5 -4 -3 -2 ------- Run | Yrd Mat Mat Mat Fac Fac Fac Fac Res Res Maximum Alert Level 2 | . . 2 1 . . . 1 2 1 Low Security (%) 73 | 100 100 61 57 100 100 100 45 88 68 Level 1 21 | . . 16 42 . . . 55 9 31 Level 2 5 | . . 22 . . . . . 1 . Level 3 . | . . . . . . . . . . Level 4 . | . . . . . . . . . . Level 5 . | . . . . . . . . . . High Security . | . . . . . . . . . . Max Security . | . . . . . . . . . . Peak Influence 504 | 10 100 504 353 153 126 70 331 426 385 Initial 199 | . . . 199 147 56 . 12 108 . Average 133 | 1 23 174 202 120 54 25 160 102 101 Influence Increases 4991 | 25 254 1020 870 192 242 330 641 806 611 Destroy 0b10 Robot/C 1840 | . 160 700 580 . . . 180 80 140 Destroy 0b10 Robot/NC 290 | 25 25 50 40 5 5 50 60 30 . Destroy Leader 454 | . 44 196 144 2 2 6 22 8 30 Successful Hack 160 | . 21 8 12 9 21 14 30 42 3 Disable Machine 30 | . . . . . . 15 . . 15 Destroy Structure 432 | . 4 51 49 11 19 50 94 106 48 Partial Spotted 450 | . . . . 90 60 105 30 150 15 Lose Combat Pursuer 1335 | . . 15 45 75 135 90 225 390 360 Influence Decreases 4606 | 25 254 547 1019 401 357 304 459 1014 226 Entered New Map 624 | . . . 274 177 59 . 14 100 . Time Decay 3032 | 25 254 507 695 214 282 284 305 360 106 Search Patrol Dispatched 100 | . . . . . . . 100 . . Lost Part 291 | . . 40 50 . 10 10 40 21 120 Lost Ally 26 | . . . . 10 6 10 . . . Purge Threat 533 | . . . . . . . . 533 . Squads Dispatched 45 | . 1 3 2 7 11 4 7 8 2 Investigation 23 | . . 1 1 5 7 2 4 3 . Extermination 10 | . . . . 2 1 2 2 2 1 Reinforcement 12 | . 1 2 1 . 3 . 1 3 1 Assault . | . . . . . . . . . . Garrison . | . . . . . . . . . . Intercept . | . . . . . . . . . . Searches Triggered 1 | . . . . . . . 1 . . Construction Impeded 1 | . . . . . . . 1 . . Haulers Reinforced 1 | . . . . . 1 . . . . Active Scanning Responses . | . . . . . . . . . . Cargo Convoy Interrupts . | . . . . . . . . . . Stealth | -11 -10 -9 -8 -7 -6 -5 -4 -3 -2 --------- Run | Yrd Mat Mat Mat Fac Fac Fac Fac Res Res Distress Signals 21 | . 2 1 . 2 1 1 4 8 2 Communications Jammed . | . . . . . . . . . . Distress Signals . | . . . . . . . . . . Times Spotted 317 | . 16 53 44 15 19 23 49 56 42 Peak Tracking Total 22 | . 3 5 4 7 6 9 12 22 20 Tactical Retreats 41 | . . 1 2 3 7 4 8 10 6 ECM-based Alert Blocks 33 | . . . . . 5 5 10 12 1 Traps | -11 -10 -9 -8 -7 -6 -5 -4 -3 -2 ------- Run | Yrd Mat Mat Mat Fac Fac Fac Fac Res Res Traps Triggered 9 | . 1 1 1 . 3 2 1 . . Indirectly . | . . . . . . . . . . Trap Hack Attempts . | . . . . . . . . . . Triggered . | . . . . . . . . . . Disarmed . | . . . . . . . . . . Reprogrammed . | . . . . . . . . . . Reused . | . . . . . . . . . . Traps Extracted . | . . . . . . . . . . Installed . | . . . . . . . . . . Triggered . | . . . . . . . . . . Machines | -11 -10 -9 -8 -7 -6 -5 -4 -3 -2 ---------- Run | Yrd Mat Mat Mat Fac Fac Fac Fac Res Res Machines Disabled 2 | . . . . . . 1 . . 1 Max in Single Turn 1 | . . . . . . 1 . . 1 Garrison Access 6 | . . . . 1 2 . . 3 . Machines Repaired . | . . . . . . . . . . Machines Dismantled . | . . . . . . . . . . Machines Sabotaged . | . . . . . . . . . . Overloaded Fab Kills . | . . . . . . . . . . Hacking | -11 -10 -9 -8 -7 -6 -5 -4 -3 -2 --------- Run | Yrd Mat Mat Mat Fac Fac Fac Fac Res Res Machines Accessed 68 | . 6 5 4 12 13 8 8 11 1 Terminals 42 | . 6 3 3 6 8 5 5 5 1 Fabricators 14 | . . . . 4 3 2 3 2 . Repair Stations 1 | . . . . . . . . 1 . Recycling Units 1 | . . . 1 . . . . . . Scanalyzers 3 | . . 2 . . . 1 . . . Garrison Access 7 | . . . . 2 2 . . 3 . Total Hacks 193 | . 17 18 7 23 38 31 25 29 5 Successful 122 | . 5 6 4 16 21 22 19 24 5 Failed 70 | . 12 12 3 7 17 8 6 5 . Catastrophic 16 | . 3 2 . 3 5 2 1 . . Database Lockouts 1 | . . . . . . 1 . . . Manual 131 | . 17 11 4 17 26 21 17 14 4 Terminals 121 | . 17 12 6 11 21 18 13 18 5 Fabricators 54 | . . . . 10 14 12 12 6 . Repair Stations 2 | . . . . . . . . 2 . Recycling Units 1 | . . . 1 . . . . . . Scanalyzers 7 | . . 6 . . . 1 . . . Garrison Access 8 | . . . . 2 3 . . 3 . Terminal Hacks 47 | . 5 1 2 4 3 9 6 13 4 Record 1 | . . . . . . . . 1 . Part Schematic 17 | . 5 . . . 1 4 3 4 . Level Access Points 5 | . . . . 1 . 1 1 1 1 Branch Access Points 1 | . . . 1 . . . . . . Terminal Index 5 | . . . . 1 1 1 1 . 1 Fabricator Index 5 | . . . . 1 1 1 1 . 1 Unreport Threat 5 | . . . . . . . . 5 . Recall Extermination 4 | . . . . 1 . 1 . 2 . Hauler Manifests 2 | . . 1 1 . . . . . . Registered Components 1 | . . . . . . . . . 1 Registered Prototypes 1 | . . . . . . 1 . . . Fabricator Hacks 32 | . . . . 4 9 8 7 4 . Network Status 1 | . . . . . . . . 1 . Load Schematic 22 | . . . . 4 6 5 5 2 . Build 9 | . . . . . 3 3 2 1 . Repair Station Hacks 1 | . . . . . . . . 1 . Scan Component 1 | . . . . . . . . 1 . Recycling Unit Hacks . | . . . . . . . . . . Scanalyzer 4 | . . 4 . . . . . . . Insert Component 2 | . . 2 . . . . . . . Analyze 2 | . . 2 . . . . . . . Garrison Access Hacks 6 | . . . . 1 2 . . 3 . Seal Access 6 | . . . . 1 2 . . 3 . Unauthorized Hacks 32 | . . 1 2 7 7 5 6 3 1 Terminals 14 | . . 1 1 3 3 2 2 1 1 Assimilate 4 | . . . . 1 1 1 . 1 . Botnet 8 | . . . . 2 2 1 2 . 1 Operators 2 | . . 1 1 . . . . . . Fabricators 17 | . . . . 4 4 3 4 2 . Prioritize 4 | . . . . . 1 1 1 1 . Recompile 13 | . . . . 4 3 2 3 1 . Repair Stations . | . . . . . . . . . . Recycling Units 1 | . . . 1 . . . . . . Mask 1 | . . . 1 . . . . . . Scanalyzers . | . . . . . . . . . . Garrison Access . | . . . . . . . . . . Data Cores Recovered . | . . . . . . . . . . Used . | . . . . . . . . . . Hacking Detections 44 | . 5 3 1 7 8 7 8 5 . Full Trace Events 7 | . . . . 1 3 . 1 2 . Feedback Events . | . . . . . . . . . . Feedback Blocked . | . . . . . . . . . . Robot Schematics Acquired . | . . . . . . . . . . Robots Built . | . . . . . . . . . . Authchips . | . . . . . . . . . . Time . | . . . . . . . . . . Total Robot Build Rating . | . . . . . . . . . . Part Schematics Acquired 19 | . 5 2 . . 1 4 3 4 . Parts Built 11 | . . . . . 3 5 2 1 . Authchips 9 | . . . . . 3 3 2 1 . Time 436 | . . . . . 159 104 80 93 . Total Part Build Rating 70 | . . . . . 18 34 11 7 . Part Studies Acquired . | . . . . . . . . . . Parts Repaired . | . . . . . . . . . . Time . | . . . . . . . . . . Parts Recycled . | . . . . . . . . . . Recycled Matter . | . . . . . . . . . . Retrieved Matter . | . . . . . . . . . . Retrieved Components . | . . . . . . . . . . Parts Scanalyzed 2 | . . 2 . . . . . . . Part Schematics Acquired 2 | . . 2 . . . . . . . Parts Damaged . | . . . . . . . . . . Bothacking | -11 -10 -9 -8 -7 -6 -5 -4 -3 -2 ------------ Run | Yrd Mat Mat Mat Fac Fac Fac Fac Res Res Used RIF Installer . | . . . . . . . . . . Robots Hacked . | . . . . . . . . . . Non-combat . | . . . . . . . . . . Combat . | . . . . . . . . . . Robot Hacks Applied . | . . . . . . . . . . Relay Couplers Released . | . . . . . . . . . . Fabnet Peak Effective % . | . . . . . . . . . . Robots Rewired . | . . . . . . . . . . Allies Hacked . | . . . . . . . . . . Hacks Repelled . | . . . . . . . . . . Allies | -11 -10 -9 -8 -7 -6 -5 -4 -3 -2 -------- Run | Yrd Mat Mat Mat Fac Fac Fac Fac Res Res Total Allies 3 | . . . . 1 1 1 . . . Largest Group 1 | . . . . 1 1 1 . . . Highest-Rated Group 10 | . . . . 10 10 10 . . . Highest-Rated Ally 10 | . . . . 10 10 10 . . . Total Orders 6 | . . . . 3 2 1 . . . STAY 4 | . . . . 2 1 1 . . . FOLLOW 2 | . . . . 1 1 . . . . Ally Attacks . | . . . . . . . . . . Total Damage . | . . . . . . . . . . Kills . | . . . . . . . . . . Allies Corrupted . | . . . . . . . . . . Allies Melted 1 | . . . . . 1 . . . . Intel | -11 -10 -9 -8 -7 -6 -5 -4 -3 -2 ------- Run | Yrd Mat Mat Mat Fac Fac Fac Fac Res Res Active Infowar (turns) 5024 | 78 516 291 614 433 723 704 682 794 189 Sensors 3649 | . . . 174 433 723 688 667 784 180 Terrain 490 | . . . . . . . . 342 148 Seismic 1391 | 78 516 291 440 66 . . . . . ECM 325 | . . . . . 153 33 15 83 41 Robot Analysis Total . | . . . . . . . . . . Derelict Logs Recovered . | . . . . . . . . . . Drone Launches . | . . . . . . . . . . Drone Recoveries . | . . . . . . . . . . Exploration | -11 -10 -9 -8 -7 -6 -5 -4 -3 -2 ------------- Run | Yrd Mat Mat Mat Fac Fac Fac Fac Res Res Turns Passed 10653 | 121 1211 2570 2880 446 724 724 780 870 327 Spaces Moved 10825 | 54 591 890 1063 1114 1688 1593 1612 1786 434 Core 88 | 5 . . . . . . . 28 55 Treads 2460 | 49 591 890 930 . . . . . . Legs . | . . . . . . . . . . Wheels . | . . . . . . . . . . Hover . | . . . . . . . . . . Flight 8277 | . . . 133 1114 1688 1593 1612 1758 379 Fastest Speed 19 | 50 160 240 31 29 27 27 27 27 19 Average Speed 73 | 150 169 242 224 30 27 27 28 29 36 Slowest Speed 320 | 160 320 320 311 31 27 27 97 150 102 Overloaded Moves 19 | . . . . . . . . . 19 Propulsion Burnouts . | . . . . . . . . . . Robots Hopped 86 | . . . . 9 21 11 10 31 4 Potential Cave-ins . | . . . . . . . . . . Cave-ins Triggered 1 | . . . . . . . . . 1 Exploration Rate (%) 44 | 6 94 72 65 34 37 29 45 47 15 Regions Visited 9 Branch Regions . Pre-discovered Areas . | . . . . . . . . . . Known Exits Taken 6 | . . 1 . 1 1 1 1 1 . Unknown Exits Taken 3 | 1 1 . 1 . . . . . . Scrap Searched . | . . . . . . . . . . Spaces Dug 131 | . 2 11 16 11 19 25 20 19 8 Terrain Destroyed 286 | . 2 48 45 11 19 25 47 74 15 Melee 97 | . 2 . . 11 19 25 20 19 1 Projectile 69 | . . 31 21 . . . . 3 14 AOE 120 | . . 17 24 . . . 27 52 . Terrain Rammed . | . . . . . . . . . . Walls Destroyed . | . . . . . . . . . . Machines Disabled . | . . . . . . . . . . Actions | -11 -10 -9 -8 -7 -6 -5 -4 -3 -2 --------- Run | Yrd Mat Mat Mat Fac Fac Fac Fac Res Res Total 12630 | 75 738 1139 1347 1185 1891 1805 1845 2042 563 Wait 941 | 4 72 60 67 40 162 141 148 191 56 Move 10655 | 53 590 889 1062 1095 1648 1570 1592 1728 428 Hop 75 | . . . . 9 18 11 9 26 2 Pick Up 109 | 2 13 24 18 10 11 8 9 10 4 Fast Attach 40 | 7 . 5 6 . 2 4 6 5 5 Attach 56 | . 2 4 10 4 8 5 5 10 8 Detach 31 | . . 2 4 1 3 5 1 7 8 Swap 132 | 1 11 34 26 4 4 18 17 13 4 Drop 125 | . 12 26 33 6 6 4 10 12 16 Fire 282 | 8 35 89 111 . . . 7 7 25 Melee 168 | . 2 . 3 16 29 39 41 33 5 Ram 2 | . . . . . . . . . 2 Kick . | . . . . . . . . . . Crush 14 | . 1 6 7 . . . . . . Escape Stasis . | . . . . . . . . . . Rewire . | . . . . . . . . . . Trap . | . . . . . . . . . . Miscellaneous . | . . . . . . . . . . Route ------- -11/Scrapyard -10/Materials (discovered 4 exits: *Mat x3 / [*Min]) -9/Materials (discovered 4 exits: *Mat x3 / [*Min]) -8/Materials (discovered 2 exits: *Fac x2) -7/Factory (discovered 4 exits: *Fac x4) -6/Factory (discovered 3 exits: *Fac x2 / [*Low]) -5/Factory (discovered 5 exits: *Fac x4 / *Upp) -4/Factory (discovered 5 exits: *Res x4 / *Upp) -3/Research (discovered 5 exits: *Res x3 / [*Qua x2]) -2/Research (discovered 4 exits: *Acc x3 / *Tes) History --------- Turn | Location | Event 11 | -11/Scrapyard | Discovered new exit (range 16) 122 | -11/Scrapyard | Entered Materials 248 | -10/Materials | Discovered new exit (range 9) 312 | -10/Materials | Build established: Mutant 596 | -10/Materials | Discovered new exit (range 16) 922 | -10/Materials | Derelicts attacked the area 929 | -10/Materials | Discovered new exit (range 16) 1190 | -10/Materials | Discovered new exit (range 3) 1333 | -10/Materials | Entered another Materials area 1333 | -9/Materials | Evolved 2 slots: Propulsion x1, Utility x1 1623 | -9/Materials | Build established: Scavenger-Mutant 2285 | -9/Materials | Discovered new exit (range 11) 2458 | -9/Materials | Discovered new exit (range 12) 3102 | -9/Materials | Discovered new exit (range 8) 3859 | -9/Materials | Discovered new exit (range 5) 3899 | -9/Materials | Identified exit to Materials 3903 | -9/Materials | Entered another Materials area 3903 | -8/Materials | Evolved 2 slots: Propulsion x1, Utility x1 4779 | -8/Materials | Build established: Mutant 4821 | -8/Materials | Discovered new exit (range 16) 5842 | -8/Materials | Build established: Scavenger-Mutant 6239 | -8/Materials | Build established: Mutant 6357 | -8/Materials | Discovered new exit (range 16) 6783 | -8/Materials | Entered Factory 6783 | -7/Factory | Evolved 2 slots: Utility x2 7151 | -7/Factory | Identified exit to Factory 7229 | -7/Factory | Entered another Factory area 7229 | -6/Factory | Evolved 2 slots: Propulsion x1, Utility x1 7268 | -6/Factory | Discovered new exit (range 15) 7273 | -6/Factory | Discovered new exit (range 14) 7274 | -6/Factory | Identified exit to Factory 7328 | -6/Factory | Found Prototype Launcher 7328 | -6/Factory | Identified Scatter Rocket Array 7510 | -6/Factory | Build established: Hacker-Sprinter 7748 | -6/Factory | Fabricated Adv. Hacking Suite? 7817 | -6/Factory | Fabricated Adv. Hacking Suite? 7874 | -6/Factory | Fabricated Adv. Hacking Suite? 7908 | -6/Factory | Allied Derelicts emerged from ambush trap array 7950 | -6/Factory | Discovered exit to Factory (range 13) 7953 | -6/Factory | Entered another Factory area 7953 | -5/Factory | Evolved 2 slots: Power x1, Utility x1 7955 | -5/Factory | Lost 3 allies 7973 | -5/Factory | Identified exit to Factory 8090 | -5/Factory | Discovered new exit (range 9) 8098 | -5/Factory | Identified exit to Upper Caves 8363 | -5/Factory | Fabricated Adv. Hacking Suite? 8452 | -5/Factory | Fabricated Lrn. Sensor Array (x2) 8495 | -5/Factory | Fabricated Lrn. Terrain Scanner (x2) 8644 | -5/Factory | Central database locked down 8677 | -5/Factory | Entered another Factory area 8677 | -4/Factory | Evolved 2 slots: Propulsion x1, Utility x1 9146 | -4/Factory | Fabricated Gravity Neutralizer (x1) 9192 | -4/Factory | Fabricated Mni. Smartbomb Launcher (x1) 9246 | -4/Factory | Identified exit to Research 9294 | -4/Factory | Discovered new exit (range 5) 9294 | -4/Factory | Identified exit to Upper Caves 9336 | -4/Factory | Spotted B-86 Titan 9427 | -4/Factory | Search patrols dispatched 9457 | -4/Factory | Entered Research 9457 | -3/Research | Evolved 2 slots: Utility x2 9515 | -3/Research | Found Prototype Device 9515 | -3/Research | Identified Adv. Kinecellerator 9547 | -3/Research | Build established: Wizard-Sprinter 9639 | -3/Research | Identified exit to Research 9672 | -3/Research | Found Prototype Hackware 9673 | -3/Research | Found Gamma Bomb Array 9756 | -3/Research | Fabricated Exp. Terrain Scan Processor (x1) 9829 | -3/Research | Discovered new exit (range 18) 9874 | -3/Research | Discovered new exit (range 19) 10051 | -3/Research | Spotted B-86 Titan 10066 | -3/Research | Identified Exp. Hacking Suite 10148 | -3/Research | Spotted B-86 Titan 10327 | -3/Research | Entered another Research area 10327 | -2/Research | Evolved 2 slots: Power x1, Weapon x1 10330 | -2/Research | Identified exit to Access 10332 | -2/Research | Discovered new exit (range 9) 10334 | -2/Research | Identified exit to Testing 10352 | -2/Research | Spotted B-90 Cyclops 10483 | -2/Research | Spotted B-90 Cyclops 10512 | -2/Research | Spotted B-90 Cyclops 10594 | -2/Research | Destroyed 7 combat bots 10594 | -2/Research | Core integrity fell below 50% 10602 | -2/Research | Lost 9 parts (1p4n3u1w) 10611 | -2/Research | Crushed by falling debris 10640 | -2/Research | Core integrity fell below 20% 10650 | -2/Research | System corruption reached 10% 10654 | -2/Research | Destroyed by S-43 Plague with Heavy Machine Gun Last Messages --------------- 10614_ B-90 Cyclops exits siege mode. 10614_ Dropped Imp. Matter Compressor. 10615_ Extracted 29 matter. 10615_ Dropped Adv. Force Field. 10615_ Dropped ECM Suite. 10616_ Dropped Com. Mass Driver. 10616_ Dropped Enh. Hardcell Cannon. 10618_ Dropped Core Analyzer. 10618_ Dropped Imp. Transmission Jammer. 10619_ Dropped Adv. Point Defense System. 10619_ Dropped Gamma Bomb Array. 10622_ Lrn. Terrain Scanner destroyed. 10623_ Cld. Field Propulsion Drive destroyed. 10624_ Dropped Lrg. Storage Unit. 10626_ Gravity Neutralizer destroyed. 10640_ System corrupted: Energy discharge (-14). 10642_ Slammed into P-80 Master. 10643_ Destabilizing: System corrupted (+1). 10653_ P-80 Master resets S-43 Plague, system corruption cleaned. Map ----- +----------------------------------------------------+ | ?????????????????????????????????????????????????? | | ?????????????????????????????????????????????????? | | ?????????????????????????????????????????????????? | | ?????????????????????????????????????????????????? | | ??????????????? ??????????????????????????????? | | ??????????????? ?????????????????????????????? | | ??????????????# ?????????????????????????????? | | ?????????????## "?? "???????????????????????? | | ############## """ "???????????????????????? | | ?? """ """ ????????????????????? | | ???? ????????????????????? | | #??????# ? ???????????????????? | | #?###### ? ?????????????????? | | #? # """ "?????????????????? | | [[ # # !!! """ """ ?????????????? | | [= # # !! """ """ ?????????????? | | ##### / # !! ??????????????? | | ????# # # ??????????????? | | ?#### ######## u ???????????????? | | ?# """????u??????????? | | ?# #### s [[[ """ u ??????????? | | ?#????# [[! """ #?????????? | | ??????# [[! #?????????? | | ??????# #?????????? | | ??????# #?????????? | | ??????# @ k ! #?????????? | | ??????##+##### k######;##########??????????????? | | ?????????????# #??? ??????????????????????? | | ?????????????# #?? ????????????????????? | | ????????????# #?# #???????????????????? | | ?????????????# #?# """ #???????????????????? | | ?????????????# #?# """ #???????????????????? | | ?????????????# #?# """ #???????????????????? | | ?????????????# #?# #???????????????????? | | ?????????????# ??#! ? #???????????????????? | | ?????????????# ??# ???? #???????????????????? | | ???????????????? ???####?????#???????????????????? | | ?????????????????????????????????????????????????? | | ?????????????????????????????????????????????????? | | ?????????????????????????????????????????????????? | | ?????????????????????????????????????????????????? | | ?????????????????????????????????????????????????? | | ?????????????????????????????????????????????????? | | #????????????????????????????????????????????????? | | #????????????????????????????????????????????????? | | #????????????????????????????????????????????????? | | #????????????????????????????????????????????????? | | #????????????????????????????????????????????????? | | #??? ????????????????????????????????????????????? | | #????????????????????????????????????????????????? | +----------------------------------------------------+ Best States ------------- Heat Dissipation 60 Energy Generation 51 Energy Capacity 350 Matter Stores 300 Matter Capacity 600 Sight Range 16 Robot Scan Range 18 Terrain Scan Range 24 Terrain Scan Density 1010 ECM Strength 1 Additional Mass Support 12 Armor Coverage 600 Evasion (%) 64 Recoil Reduction 4 Offensive Hacking 72 Defensive Hacking 12 Authchip Count 6 Item Schematics ----------------- Signal Interpreter | -10/Materials | Hacked Seismic Detector | -10/Materials | Hacked Assault Rifle | -10/Materials | Hacked Flight Unit | -10/Materials | Hacked Lgt. Armor Plating | -10/Materials | Hacked Huge Storage Unit | -9/Materials | Scanalyzed Lrg. Storage Unit | -9/Materials | Scanalyzed Adv. Hacking Suite | -6/Factory | Hacked Gravity Neutralizer | -5/Factory | Hacked Exp. Targeting Computer | -5/Factory | Hacked Lrn. Sensor Array | -5/Factory | Hacked Lrn. Terrain Scanner | -5/Factory | Hacked Mni. Smartbomb Launcher | -4/Factory | Hacked Exp. Terrain Scan Processor | -4/Factory | Hacked Exp. Signal Interpreter | -4/Factory | Hacked Adv. Cloaking Device | -3/Research | Hacked Singularity Reactor | -3/Research | Hacked Centrium Heavy Armor Plating | -3/Research | Hacked Exp. Biometal Heavy Treads | -3/Research | Hacked Robot Schematics ------------------ None Fabricated ------------ Adv. Hacking Suite | x1 | -6/Factory | Authchip Adv. Hacking Suite | x1 | -6/Factory | Authchip Adv. Hacking Suite | x1 | -6/Factory | Authchip Adv. Hacking Suite | x1 | -5/Factory | Authchip Lrn. Sensor Array | x2 | -5/Factory | Authchip Lrn. Terrain Scanner | x2 | -5/Factory | Authchip Gravity Neutralizer | x1 | -4/Factory | Authchip Mni. Smartbomb Launcher | x1 | -4/Factory | Authchip Exp. Terrain Scan Processor | x1 | -3/Research | Authchip Repaired ---------- Nothing Studied --------- None Alien Tech Used ----------------- None Achievements -------------- None Challenges ------------ None Game ------ Seed TerrabombFusionNukerbomber Manual? 0 Play Time 02:37:08 Cumulative 342.1 hours Start 2025.12.30 @ 22:44:14 End 2025.12.31 @ 01:21:07 Sessions 1 Manual Loads 0 Difficulty Rogue Special Mode None Game No. 234 Rogue 231 Adventurer 3 Explorer 0 Win Type - Total 16 Types 8/1/3/1/1/0/0/1/0/1 Lore% 77 Gallery% 79 Achievement% 71 Wizard Run 0 Options --------- Layout 2 ASCII 0 Keyboard 1 Movement Arrows Keybinds 0 Fullscreen 1 Font 32/SmallcapsGlow Map View 50x44 Zoom Use 0% Tactical HUD 1 Map Filters NONE Filters NONE Steam 1 RUN: 626eafb9-aa12-46c7-81c5-2ab726ff6dd5